fUSD/lending_fUSD_20250118
["ID","MTS","AMOUNT","RATE_DAILY","PERIOD"]
[349413834,1737167504527,-1710.3,0.00020999,2]
[349413835,1737167504538,-643.38,0.00020999,2]
[349413836,1737167504548,-1710.3,0.00020999,2]
[349413837,1737167504560,-643.38,0.00020999,2]
[349413838,1737167504572,-1710.3,0.00020999,2]
[349413839,1737167504582,-643.57546076,0.00020999,2]
[349413840,1737167504592,-151.0,0.00020999,2]
[349413841,1737167504603,-1710.3,0.00020999,2]
[349413842,1737167504613,-1710.3,0.00020999,2]
[349413843,1737167504625,-884.97,0.00020999,2]
[349413844,1737167504634,-1710.3,0.00020999,2]
[349413845,1737167504644,-884.97,0.00020999,2]
[349413846,1737167504655,-1710.3,0.00020999,2]
[349413847,1737167504665,-884.97,0.00020999,2]
[349413848,1737167504675,-1710.3,0.00020999,2]
[349413849,1737167504685,-884.97,0.00020999,2]
[349413850,1737167504696,-884.97,0.00020999,2]
[349413851,1737167504707,-1710.3,0.00020999,2]
[349413852,1737167504718,-884.97,0.00020999,2]
[349413853,1737167504729,-1710.3,0.00020999,2]
[349413854,1737167504740,-884.97,0.00020999,2]
[349413855,1737167504751,-1710.3,0.00020999,2]
[349413856,1737167504762,-884.97,0.00020999,2]
[349413857,1737167504771,-1710.44572868,0.00020999,2]
[349413858,1737167504783,-884.97,0.00020999,2]
[349413859,1737167504793,-884.97,0.00020999,2]
[349413860,1737167504802,-884.99836591,0.00020999,2]
[349413861,1737167504811,-500.0,0.00020999,2]
[349413862,1737167504821,-500.0,0.00020999,2]
[349413863,1737167504831,-500.0,0.00020999,2]
[349413864,1737167504841,-500.0,0.00020999,2]
[349413865,1737167504850,-500.0,0.00020999,2]
[349413866,1737167504857,-500.0,0.00020999,2]
[349413867,1737167504864,-500.0,0.00020999,2]
[349413868,1737167504871,-500.0,0.00020999,2]
[349413869,1737167504879,-500.0,0.00020999,2]
[349413870,1737167504886,-500.0,0.00020999,2]
[349413871,1737167504894,-500.0,0.00020999,2]
[349413872,1737167504901,-500.0,0.00020999,2]
[349413873,1737167504909,-373.34967439,0.00020999,2]
[349413874,1737167504917,-500.0,0.00020999,2]
[349413875,1737167504925,-500.0,0.00020999,2]
[349413876,1737167504934,-500.0,0.00020999,2]
[349413877,1737167504944,-500.0,0.00020999,2]
[349413878,1737167504954,-500.0,0.00020999,2]
[349413879,1737167504963,-500.0,0.00020999,2]
[349413880,1737167504972,-500.0,0.00020999,2]
[349413881,1737167504982,-500.0,0.00020999,2]
[349413882,1737167504991,-500.0,0.00020999,2]
[349413883,1737167505000,-500.0,0.00020999,2]
[349413884,1737167505010,-500.0,0.00020999,2]
[349413885,1737167505020,-500.0,0.00020999,2]
[349413886,1737167505029,-500.0,0.00020999,2]
[349413887,1737167505039,-500.0,0.00020999,2]
[349413888,1737167505048,-247.35076129,0.00020999,2]
[349413889,1737167505057,-500.0,0.00020999,2]
[349413890,1737167505067,-500.0,0.00020999,2]
[349413891,1737167505076,-500.0,0.00020999,2]
[349413892,1737167505085,-500.0,0.00020999,2]
[349413893,1737167505094,-500.0,0.00020999,2]
[349413894,1737167505104,-500.0,0.00020999,2]
[349413895,1737167505113,-500.0,0.00020999,2]
[349413896,1737167505122,-795.09,0.00020999,2]
[349413897,1737167505131,-500.0,0.00020999,2]
[349413898,1737167505141,-795.09,0.00020999,2]
[349413899,1737167505151,-500.0,0.00020999,2]
[349413900,1737167505161,-795.09,0.00020999,2]
[349413901,1737167505170,-500.0,0.00020999,2]
[349413902,1737167505180,-795.09,0.00020999,2]
[349413903,1737167505191,-264.00512168,0.00020999,2]
[349413904,1737167505202,-795.09,0.00020999,2]
[349413905,1737167505211,-795.09,0.00020999,2]
[349413906,1737167505221,-795.09,0.00020999,2]
[349413907,1737167505231,-795.09,0.00020999,2]
[349413908,1737167505240,-795.09,0.00020999,2]
[349413909,1737167505249,-795.09,0.00020999,2]
[349413910,1737167505259,-929.03,0.00020999,2]
[349413911,1737167505268,-795.28344108,0.00020999,2]
[349413912,1737167505280,-929.03,0.00020999,2]
[349413913,1737167505289,-929.03,0.00020999,2]
[349413914,1737167505298,-929.03,0.00020999,2]
[349413915,1737167505308,-929.03,0.00020999,2]
[349413916,1737167505318,-929.03,0.00020999,2]
[349413917,1737167505328,-500.0,0.00020999,2]
[349413918,1737167505338,-929.03,0.00020999,2]
[349413919,1737167505349,-500.0,0.00020999,2]
[349413920,1737167505360,-500.0,0.00020999,2]
[349413921,1737167505369,-929.0366202,0.00020999,2]
[349413922,1737167505382,-500.0,0.00020999,2]
[349413923,1737167505391,-511.21609993,0.00020999,2]
[349413924,1737167505401,-500.0,0.00020999,2]
[349413925,1737167505410,-500.0,0.00020999,2]
[349413926,1737167505420,-500.0,0.00020999,2]
[349413927,1737167505430,-500.0,0.00020999,2]
[349413928,1737167505440,-500.0,0.00020999,2]
[349413929,1737167505450,-500.0,0.00020999,2]
[349413930,1737167505460,-500.0,0.00020999,2]
[349413931,1737167505470,-500.0,0.00020999,2]
[349413932,1737167505479,-151.0,0.00020999,2]
[349413933,1737167505489,-500.0,0.00020999,2]
[349413934,1737167505499,-500.0,0.00020999,2]
[349413935,1737167505508,-542.73382737,0.00020999,2]
[349413936,1737167505518,-804.1,0.00020999,2]
[349413937,1737167505527,-804.1,0.00020999,2]
[349413938,1737167505537,-804.1,0.00020999,2]
[349413939,1737167505546,-154.37390008,0.00020999,2]
[349413940,1737167505555,-804.1,0.00020999,2]
[349413941,1737167505565,-804.1,0.00020999,2]
[349413942,1737167505574,-804.1,0.00020999,2]
[349413943,1737167505583,-804.1,0.00020999,2]
[349413944,1737167505593,-1462.41,0.00020999,2]
[349413945,1737167505603,-500.0,0.00020999,2]
[349413946,1737167505612,-1462.41,0.00020999,2]
[349413947,1737167505624,-500.0,0.00020999,2]
[349413948,1737167505634,-1462.41,0.00020999,2]
[349413949,1737167505644,-500.0,0.00020999,2]
[349413950,1737167505654,-1462.41,0.00020999,2]
[349413951,1737167505664,-500.0,0.00020999,2]
[349413952,1737167505673,-1462.41,0.00020999,2]
[349413953,1737167505682,-500.0,0.00020999,2]
[349413954,1737167505692,-1462.41,0.00020999,2]
[349413955,1737167505701,-500.0,0.00020999,2]
[349413956,1737167505711,-1462.41,0.00020999,2]
[349413957,1737167505720,-500.0,0.00020999,2]
[349413958,1737167505730,-1462.41,0.00020999,2]
[349413959,1737167505739,-500.0,0.00020999,2]
[349413960,1737167505749,-1462.41,0.00020999,2]
[349413961,1737167505758,-804.1,0.00020999,2]
[349413962,1737167505767,-1462.41,0.00020999,2]
[349413963,1737167505777,-500.0,0.00020999,2]
[349413964,1737167505786,-804.1,0.00020999,2]
[349413965,1737167505795,-1462.41,0.00020999,2]
[349413966,1737167505806,-500.0,0.00020999,2]
[349413967,1737167505815,-804.1,0.00020999,2]
[349413968,1737167505824,-1462.41,0.00020999,2]
[349413969,1737167505834,-500.0,0.00020999,2]
[349413970,1737167505843,-804.29659281,0.00020999,2]
[349413971,1737167505852,-1462.41,0.00020999,2]
[349413972,1737167506005,-500.0,0.00020999,2]
[349413973,1737167506015,-1462.41,0.00020999,2]
[349413974,1737167506025,-245.43092016,0.00020999,2]
[349413975,1737167506034,-1462.41,0.00020999,2]
[349413976,1737167506043,-1462.41,0.00020999,2]
[349413977,1737167506053,-1462.41,0.00020999,2]
[349413978,1737167506062,-1462.41162355,0.00020999,2]
[349413979,1737167506071,-198.895524,0.00020999,2]
[349413980,1737167506080,-500.0,0.00020999,2]
[349413981,1737167506090,-500.0,0.00020999,2]
[349413982,1737167506099,-500.0,0.00020999,2]
[349413983,1737167506108,-500.0,0.00020999,2]
[349413984,1737167506118,-500.0,0.00020999,2]
[349413985,1737167506130,-500.0,0.00020999,2]
[349413986,1737167506140,-500.0,0.00020999,2]
[349413987,1737167506149,-151.0,0.00020999,2]
[349413988,1737167506158,-500.0,0.00020999,2]
[349413989,1737167506168,-644.44080548,0.00020999,2]
[349413990,1737167506178,-788.17,0.00020999,2]
[349413991,1737167506188,-500.0,0.00020999,2]
[349413992,1737167506197,-788.17,0.00020999,2]
[349413993,1737167506207,-566.25,0.00020999,2]
[349413994,1737167506216,-500.0,0.00020999,2]
[349413995,1737167506226,-788.17,0.00020999,2]
[349413996,1737167506237,-566.25,0.00020999,2]
[349413997,1737167506246,-500.0,0.00020999,2]
[349413998,1737167506256,-788.17,0.00020999,2]
[349413999,1737167506266,-566.25,0.00020999,2]
[349414000,1737167506279,-788.17,0.00020999,2]
[349414001,1737167506288,-500.0,0.00020999,2]
[349414002,1737167506298,-566.25,0.00020999,2]
[349414003,1737167506307,-493.81897734,0.00020999,2]
[349414004,1737167506318,-788.17,0.00020999,2]
[349414005,1737167506328,-566.25,0.00020999,2]
[349414006,1737167506338,-788.17,0.00020999,2]
[349414007,1737167506348,-566.25,0.00020999,2]
[349414008,1737167506359,-566.25,0.00020999,2]
[349414009,1737167506369,-788.17,0.00020999,2]
[349414010,1737167506381,-566.25,0.00020999,2]
[349414011,1737167506390,-788.17,0.00020999,2]
[349414012,1737167506400,-566.25,0.00020999,2]
[349414013,1737167506409,-788.17,0.00020999,2]
[349414014,1737167506418,-566.25,0.00020999,2]
[349414015,1737167506428,-788.17,0.00020999,2]
[349414016,1737167506437,-566.47859311,0.00020999,2]
[349414017,1737167506447,-788.17,0.00020999,2]
[349414018,1737167506456,-788.17,0.00020999,2]
[349414019,1737167506465,-788.17,0.00020999,2]
[349414020,1737167506475,-788.17,0.00020999,2]
[349414021,1737167506484,-788.17,0.00020999,2]
[349414022,1737167506493,-788.17,0.00020999,2]
[349414023,1737167506503,-788.30145182,0.00020999,2]
[349414024,1737167506512,-500.0,0.00020999,2]
[349414025,1737167506522,-500.0,0.00020999,2]
[349414026,1737167506531,-500.0,0.00020999,2]
[349414027,1737167506541,-500.0,0.00020999,2]
[349414028,1737167506550,-500.0,0.00020999,2]
[349414029,1737167506559,-609.97,0.00020999,2]
[349414030,1737167506569,-246.48262511,0.00020999,2]
[349414031,1737167506579,-500.0,0.00020999,2]
[349414032,1737167506589,-500.0,0.00020999,2]
[349414033,1737167506598,-500.0,0.00020999,2]
[349414034,1737167506608,-500.0,0.00020999,2]
[349414035,1737167506618,-500.0,0.00020999,2]
[349414036,1737167506630,-500.0,0.00020999,2]
[349414037,1737167506640,-500.0,0.00020999,2]
[349414038,1737167506650,-500.0,0.00020999,2]
[349414039,1737167506660,-583.75,0.00020999,2]
[349414040,1737167506669,-583.75,0.00020999,2]
[349414041,1737167506679,-500.0,0.00020999,2]
[349414042,1737167506688,-583.75,0.00020999,2]
[349414043,1737167506698,-266.60002004,0.00020999,2]
[349414044,1737167506707,-583.75,0.00020999,2]
[349414045,1737167506717,-583.75,0.00020999,2]
[349414046,1737167506727,-609.97,0.00020999,2]
[349414047,1737167506737,-583.75,0.00020999,2]
[349414048,1737167506746,-609.97,0.00020999,2]
[349414049,1737167506756,-583.75,0.00020999,2]
[349414050,1737167506765,-609.97,0.00020999,2]
[349414051,1737167506775,-583.75,0.00020999,2]
[349414052,1737167506784,-609.97,0.00020999,2]
[349414053,1737167506794,-609.97,0.00020999,2]
[349414054,1737167506803,-609.97,0.00020999,2]
[349414055,1737167506813,-583.75,0.00020999,2]
[349414056,1737167506822,-609.97,0.00020999,2]
[349414057,1737167506832,-583.75,0.00020999,2]
[349414058,1737167506841,-609.97,0.00020999,2]
[349414059,1737167506851,-583.8210176,0.00020999,2]
[349414060,1737167506859,-609.97,0.00020999,2]
[349414061,1737167506869,-609.97,0.00020999,2]
[349414062,1737167506879,-609.97,0.00020999,2]
[349414063,1737167506889,-609.97,0.00020999,2]
[349414064,1737167506898,-609.97,0.00020999,2]
[349414065,1737167506908,-609.97,0.00020999,2]
[349414066,1737167506917,-1150.23,0.00020999,2]
[349414067,1737167506926,-609.97,0.00020999,2]
[349414068,1737167506937,-1150.23,0.00020999,2]
[349414069,1737167506947,-610.17504809,0.00020999,2]
[349414070,1737167506958,-1150.23,0.00020999,2]
[349414071,1737167506968,-151.0,0.00020999,2]
[349414072,1737167506979,-1150.23,0.00020999,2]
[349414073,1737167506988,-1150.23,0.00020999,2]
[349414074,1737167506997,-1150.23,0.00020999,2]
[349414075,1737167507006,-1150.23,0.00020999,2]
[349414076,1737167507015,-1150.23,0.00020999,2]
[349414077,1737167507024,-1150.23,0.00020999,2]
[349414078,1737167507033,-1150.23,0.00020999,2]
[349414079,1737167507043,-1150.23,0.00020999,2]
[349414080,1737167507053,-1150.23,0.00020999,2]
[349414081,1737167507062,-1150.23,0.00020999,2]
[349414082,1737167507071,-1150.23,0.00020999,2]
[349414083,1737167507080,-1150.23,0.00020999,2]
[349414084,1737167507089,-1150.23,0.00020999,2]
[349414085,1737167507098,-1150.23,0.00020999,2]
[349414086,1737167507107,-1150.2929495,0.00020999,2]
[349414087,1737167507117,-500.0,0.00020999,2]
[349414088,1737167507127,-500.0,0.00020999,2]
[349414089,1737167507136,-500.0,0.00020999,2]
[349414090,1737167507145,-500.0,0.00020999,2]
[349414091,1737167507155,-500.0,0.00020999,2]
[349414092,1737167507165,-500.0,0.00020999,2]
[349414093,1737167507174,-500.0,0.00020999,2]
[349414094,1737167507183,-500.0,0.00020999,2]
[349414095,1737167507193,-619.68,0.00020999,2]
[349414096,1737167507202,-638.37562443,0.00020999,2]
[349414097,1737167507211,-619.68,0.00020999,2]
[349414098,1737167507220,-500.0,0.00020999,2]
[349414099,1737167507230,-619.68,0.00020999,2]
[349414100,1737167507239,-500.0,0.00020999,2]
[349414101,1737167507248,-619.68,0.00020999,2]
[349414102,1737167507257,-500.0,0.00020999,2]
[349414103,1737167507266,-619.68,0.00020999,2]
[349414104,1737167507279,-500.0,0.00020999,2]
[349414105,1737167507288,-619.68,0.00020999,2]
[349414106,1737167507297,-500.0,0.00020999,2]
[349414107,1737167507306,-590.26076034,0.00020999,2]
[349414108,1737167507316,-619.68,0.00020999,2]
[349414109,1737167507326,-619.68,0.00020999,2]
[349414110,1737167507335,-619.68,0.00020999,2]
[349414111,1737167507345,-151.0,0.00020999,2]
[349414112,1737167507354,-619.68,0.00020999,2]
[349414113,1737167507363,-619.68,0.00020999,2]
[349414114,1737167507373,-619.68,0.00020999,2]
[349414115,1737167507383,-619.68,0.00020999,2]
[349414116,1737167507392,-619.68,0.00020999,2]
[349414117,1737167507401,-619.68,0.00020999,2]
[349414118,1737167507411,-619.68,0.00020999,2]
[349414119,1737167507420,-619.68,0.00020999,2]
[349414120,1737167507430,-619.77300778,0.00020999,2]
[349414121,1737167507440,-151.0,0.00020999,2]
[349414122,1737167507449,-500.0,0.00020999,2]
[349414123,1737167507458,-500.0,0.00020999,2]
[349414124,1737167507468,-500.0,0.00020999,2]
[349414125,1737167507477,-500.0,0.00020999,2]
[349414126,1737167507487,-500.0,0.00020999,2]
[349414127,1737167507496,-500.0,0.00020999,2]
[349414128,1737167507505,-574.52175936,0.00020999,2]
[349414129,1737167507514,-500.0,0.00020999,2]
[349414130,1737167507524,-500.0,0.00020999,2]
[349414131,1737167507533,-500.0,0.00020999,2]
[349414132,1737167507542,-500.0,0.00020999,2]
[349414133,1737167507552,-500.0,0.00020999,2]
[349414134,1737167507561,-526.73330222,0.00020999,2]
[349414135,1737167507571,-500.0,0.00020999,2]
[349414136,1737167507580,-500.0,0.00020999,2]
[349414137,1737167507590,-500.0,0.00020999,2]
[349414138,1737167507599,-500.0,0.00020999,2]
[349414139,1737167507609,-500.0,0.00020999,2]
[349414140,1737167507618,-500.0,0.00020999,2]
[349414141,1737167507631,-500.0,0.00020999,2]
[349414142,1737167507641,-442070.75894582,0.00021,10]
[349414143,1737167508412,-500.59633192,0.00020239,2]
[349414144,1737167508423,-500.0,0.00020997,2]
[349414145,1737167508580,-97.61750844,0.00020997,2]
[349414146,1737167508593,-402.38249156,0.00020997,2]
[349414147,1737167508603,-315.32086813,0.00020998,2]
[349414148,1737167508636,-265.47913187,0.00020998,2]
[349414149,1737167508645,-1221.25,0.00020998,2]
[349414150,1737167508654,-1221.25,0.00020998,2]
[349414151,1737167508664,-580.8,0.00020998,2]
[349414152,1737167508673,-1221.25,0.00020998,2]
[349414153,1737167508682,-500.0,0.00020998,2]
[349414154,1737167508692,-580.8,0.00020998,2]
[349414155,1737167508701,-1221.25,0.00020998,2]
[349414156,1737167508711,-500.0,0.00020998,2]
[349414157,1737167508721,-580.8,0.00020998,2]
[349414158,1737167508730,-580.8,0.00020998,2]
[349414159,1737167508741,-1221.25,0.00020998,2]
[349414160,1737167508750,-500.0,0.00020998,2]
[349414161,1737167508760,-580.8,0.00020998,2]
[349414162,1737167508769,-1221.25,0.00020998,2]
[349414163,1737167508779,-368.93830996,0.00020998,2]
[349414164,1737167508789,-580.8,0.00020998,2]
[349414165,1737167508798,-1221.25,0.00020998,2]
[349414166,1737167508808,-580.8,0.00020998,2]
[349414167,1737167508816,-539.98,0.00020999,2]
[349414168,1737167508826,-500.0,0.00020999,2]
[349414169,1737167508835,-539.98,0.00020999,2]
[349414170,1737167508845,-597.23348564,0.00020999,2]
[349414171,1737167508855,-539.98,0.00020999,2]
[349414172,1737167508864,-539.98,0.00020999,2]
[349414173,1737167508876,-539.98,0.00020999,2]
[349414174,1737167508886,-539.98,0.00020999,2]
[349414175,1737167508896,-539.98,0.00020999,2]
[349414176,1737167508906,-539.98,0.00020999,2]
[349414177,1737167508916,-1221.25,0.00020999,2]
[349414178,1737167508925,-204741.79828472,0.00021,10]
[349414179,1737167508938,-381.28266465,0.00021,10]
[349414180,1737167508949,-8154.91789767,0.00021,10]
[349414181,1737167508988,-539.98,0.00020999,2]
[349414182,1737167508997,-6709.60771462,0.00021,10]
[349414183,1737167509238,-500.0,0.00020238,2]
[349414184,1737167509248,-500.0,0.00020239,2]
[349414185,1737167509258,-500.0,0.00020497,2]
[349414186,1737167509268,-500.0,0.00020498,2]
[349414187,1737167509281,-518.97043314,0.00020683,2]
[349414188,1737167509291,-500.0,0.00020684,2]
[349414189,1737167509300,-500.0,0.00020684,2]
[349414190,1737167509310,-580.8,0.00020998,2]
[349414191,1737167509320,-580.8,0.00020998,2]
[349414192,1737167509330,-580.8,0.00020998,2]
[349414193,1737167509339,-580.8,0.00020998,2]
[349414194,1737167509349,-580.8,0.00020998,2]
[349414195,1737167509358,-580.85362814,0.00020998,2]
[349414196,1737167509368,-1221.25,0.00020999,2]
[349414197,1737167509379,-1221.25,0.00020999,2]
[349414198,1737167509388,-539.98,0.00020999,2]
[349414199,1737167509397,-1221.25,0.00020999,2]
[349414200,1737167509406,-540.12597495,0.00020999,2]
[349414201,1737167509415,-1221.25,0.00020999,2]
[349414202,1737167509424,-1221.25,0.00020999,2]
[349414203,1737167509433,-1221.25,0.00020999,2]
[349414204,1737167509443,-508.173367,0.00020999,2]
[349414205,1737167509453,-1221.40694762,0.00020999,2]
[349414206,1737167509462,-151.0,0.00020999,2]
[349414207,1737167509472,-9121.06511822,0.00021,10]
[349414208,1737167509484,-135761.00524484,0.00021,10]
[349414209,1737167509495,-956.75,0.00021,10]
[349414210,1737167509511,-429.93787537,0.00021,10]
[349414211,1737167509862,-1200.0241502,0.00019757,2]
[349414212,1737167509882,-68.9758498,0.00019757,2]
[349414213,1737167509899,-500.0,0.00020239,2]
[349414214,1737167509914,-151.0,0.00020999,2]
[349414215,1737167509929,-103.3621502,0.00020999,2]
[349414216,1737167509948,-404.8112168,0.00020999,2]
[349414217,1737167509965,-194826.46752269,0.00021,10]
[349414218,1737167509984,-989.91596935,0.00021,10]
[349414219,1737167510015,-500.0,0.00020498,2]
[349414220,1737167510030,-1944.29999904,0.00021,10]
[349414221,1737167510066,-316.86704382,0.00020238,2]
[349414222,1737167592253,500.0,0.00023001,120]
[349414223,1737167598271,2000.0,0.00023001,120]
[349414224,1737167610985,500.0,0.00023001,120]
[349414225,1737167618348,200.0,0.00023001,120]
[349414226,1737167726270,254.25,0.00010137,2]
[349414229,1737167866140,5000.9,0.00012,2]
[349414230,1737167914369,1348.0,0.000231,120]
[349414233,1737168427135,-161.30315357,0.00016813,2]
[349414234,1737168434144,-92.94684643,0.00016813,2]
[349414235,1737168434166,-806.14,0.00017539,2]
[349414236,1737168434187,-221.73087323,0.00018732,2]
[349414237,1737168434438,-56.79449193,0.00018832,2]
[349414238,1737168446094,-1343.20550807,0.00018832,2]
[349414239,1737168446116,-310.75219656,0.00018832,2]
[349414240,1737168570667,166.9,0.00010137,2]
[349414242,1737168588535,344.02684891,0.000231,120]
[349414245,1737168631709,-169.26,0.00018792,2]
[349414246,1737168631718,-86.595,0.00018832,2]
[349414248,1737168631730,-102.65280344,0.00018832,2]
[349414249,1737168631741,-1300.0,0.00018832,2]
[349414250,1737168631751,-250.0,0.00018836,2]
[349414251,1737168631760,-847.30976508,0.00018854,2]
[349414252,1737168631772,-417.52,0.00018854,2]
[349414253,1737168631784,-903.38703061,0.00018854,2]
[349414254,1737168631795,-6094.01024252,0.00018854,2]
[349414255,1737168631952,-15637.77296179,0.00018854,2]
[349414256,1737168631969,-2856.31,0.00018877,2]
[349414257,1737168631984,-389.96,0.0001898,2]
[349414258,1737168631994,-885.22,0.00019172,2]
[349414259,1737168632004,-200.0,0.0001921,2]
[349414260,1737168632013,-1094.83,0.0001922,2]
[349414261,1737168632023,-300.0,0.00019237,2]
[349414262,1737168632034,-1000.0,0.00019242,2]
[349414263,1737168632043,-1513.86,0.00019244,2]
[349414264,1737168632053,-395.0,0.00019252,2]
[349414265,1737168632063,-250.0,0.00019258,2]
[349414266,1737168632072,-1125.2,0.00019259,2]
[349414267,1737168632082,-514.1,0.00019261,2]
[349414268,1737168632092,-237.14,0.00019422,2]
[349414269,1737168632102,-250.0,0.00019493,2]
[349414270,1737168632112,-500.0,0.00019582,2]
[349414271,1737168632122,-1362.22,0.00019586,2]
[349414272,1737168632133,-162.31,0.00019601,2]
[349414273,1737168632146,-464.27,0.00019601,2]
[349414274,1737168632156,-461.2,0.00019627,2]
[349414275,1737168632167,-165.58,0.0001964,2]
[349414276,1737168632177,-164.047,0.00019756,2]
[349414277,1737168632187,-2236.478,0.00019756,2]
[349414278,1737168632198,-150.0,0.00019756,2]
[349414279,1737168632207,-1270.772,0.00019757,2]
[349414280,1737168632216,-2021.965,0.00019757,2]
[349414281,1737168632226,-150.544,0.00019757,2]
[349414282,1737168632235,-635.0,0.00019757,2]
[349414284,1737168632245,-567.0,0.00019757,2]
[349414286,1737168632254,-1863.0,0.00019757,2]
[349414287,1737168632264,-1271.16,0.00019757,2]
[349414288,1737168632274,-822.0,0.00019757,2]
[349414289,1737168632283,-944.416,0.00019757,2]
[349414290,1737168632293,-2952.032,0.00019757,2]
[349414291,1737168632303,-4011.694,0.00019757,2]
[349414292,1737168632313,-539.413,0.00019757,2]
[349414293,1737168632322,-151.455,0.00019757,2]
[349414294,1737168632332,-3900.0,0.00019757,2]
[349414295,1737168632342,-1284.322,0.00019757,2]
[349414296,1737168632351,-167.63,0.00019785,2]
[349414297,1737168632362,-806.14,0.00019803,2]
[349414298,1737168632372,-207.84136773,0.000199,2]
[349414299,1737168632381,-500.0,0.00019928,2]
[349414300,1737168632392,-1300.0,0.00019928,2]
[349414301,1737168632402,-5007.61996946,0.0002,5]
[349414302,1737168632413,-772.56,0.00020137,2]
[349414303,1737168632422,-772.56,0.00020137,2]
[349414304,1737168632432,-1545.12,0.00020137,2]
[349414305,1737168632441,-207.84136773,0.0002015,2]
[349414306,1737168632452,-107991.52593168,0.000202,2]
[349414307,1737168632461,-395.0,0.00020214,2]
[349414308,1737168632471,-500.0,0.00020238,2]
[349414309,1737168632481,-500.0,0.00020238,2]
[349414310,1737168632491,-500.0,0.00020238,2]
[349414311,1737168632500,-500.0,0.00020238,2]
[349414312,1737168632510,-500.0,0.00020238,2]
[349414313,1737168632519,-500.0,0.00020238,2]
[349414314,1737168632529,-500.0,0.00020238,2]
[349414315,1737168632539,-500.0,0.00020238,2]
[349414316,1737168632548,-500.0,0.00020238,2]
[349414317,1737168632560,-500.0,0.00020238,2]
[349414318,1737168632569,-500.0,0.00020238,2]
[349414319,1737168632580,-500.0,0.00020238,2]
[349414320,1737168632590,-500.0,0.00020238,2]
[349414321,1737168632600,-500.0,0.00020238,2]
[349414322,1737168632610,-500.0,0.00020238,2]
[349414323,1737168632622,-500.0,0.00020238,2]
[349414324,1737168632633,-500.0,0.00020238,2]
[349414325,1737168632645,-500.0,0.00020238,2]
[349414326,1737168632655,-500.0,0.00020238,2]
[349414327,1737168632666,-500.56,0.00020238,2]
[349414328,1737168632676,-640.20600637,0.00020238,2]
[349414329,1737168632685,-500.0,0.00020238,2]
[349414330,1737168632695,-500.0,0.00020238,2]
[349414331,1737168632705,-166.66,0.00020398,2]
[349414332,1737168632715,-207.84136773,0.000204,2]
[349414333,1737168632724,-181536.88180952,0.00020497,2]
[349414334,1737168632735,-520.21191281,0.00020497,2]
[349414335,1737168632745,-510.94078003,0.00020497,2]
[349414336,1737168632755,-500.0,0.00020497,2]
[349414337,1737168632764,-500.0,0.00020497,2]
[349414338,1737168632773,-500.0,0.00020497,2]
[349414339,1737168632783,-457.63,0.00020497,2]
[349414340,1737168632793,-505.39838499,0.00020497,2]
[349414341,1737168632802,-500.0,0.00020497,2]
[349414342,1737168632812,-500.0,0.00020497,2]
[349414343,1737168632822,-500.0,0.00020497,2]